bitfinex/quotes_ETHUSD_20260107
["timestamp","ask_amount","ask_price","bid_price","bid_amount"]
[1767748298805,0.95196226,3267.6,3266.1,0.802]
[1767748298996,0.95196226,3267.4,3266.1,3.86374425]
[1767748299490,0.95196226,3267.4,3266.1,0.802]
[1767748299809,0.802,3267.3,3266.0,0.95431098]
[1767748300485,6.12144954,3267.2,3266.0,0.95431098]
[1767748302506,6.12144954,3267.2,3266.0,4.01614012]
[1767748302711,0.78754118,3267.1,3266.0,0.95431098]
[1767748302902,0.78754118,3267.1,3266.0,4.0161567]
[1767748303503,0.78754118,3267.1,3266.1,0.95431098]
[1767748303714,3.06072477,3267.2,3266.1,0.95431098]
[1767748303880,3.06053743,3267.4,3266.1,0.95431098]
[1767748304287,3.06053743,3267.4,3266.1,0.98492853]
[1767748304897,6.12088752,3267.5,3266.3,0.95531098]
[1767748306420,0.95196226,3267.4,3266.3,0.001]
[1767748306590,0.95196226,3267.2,3266.3,0.001]
[1767748306921,3.06081846,3267.1,3266.3,0.001]
[1767748307092,6.12163692,3267.1,3266.3,0.001]
[1767748308719,7.07359918,3267.1,3266.3,0.001]
[1767748309217,6.12163692,3267.1,3266.3,0.001]
[1767748309405,0.61216369,3267.0,3266.3,0.001]
[1767748309792,0.61216369,3267.0,3266.3,0.95531098]
[1767748309989,3.06081846,3267.1,3266.3,0.95531098]
[1767748311320,3.06072477,3267.2,3266.3,0.95531098]
[1767748311494,6.12145416,3267.2,3266.3,0.95531098]
[1767748312920,3.06072477,3267.2,3266.3,0.95531098]
[1767748313289,7.07322446,3267.3,3266.3,0.95531098]
[1767748313518,0.30606543,3267.2,3266.3,0.95531098]
[1767748313711,0.95196226,3267.1,3266.3,0.001]
[1767748316316,3.06091215,3267.0,3266.3,0.001]
[1767748316634,0.95196226,3266.9,3266.3,0.001]
[1767748317195,0.95196226,3266.8,3266.3,0.001]
[1767748318724,4.01310279,3266.8,3266.6,0.001]
[1767748319425,0.95196226,3266.7,3266.6,0.001]
[1767748320241,3.06114053,3266.8,3266.6,0.001]
[1767748320944,3.06114053,3266.8,3266.3,0.001]
[1767748320945,0.95196226,3266.7,3266.3,0.001]
[1767748321438,0.95196226,3266.7,3265.6,0.802]
[1767748321439,0.95196226,3266.6,3265.6,0.95431098]
[1767748322445,0.95196226,3266.6,3265.4,0.98771875]
[1767748322618,0.94363109,3266.5,3265.4,0.98771875]
[1767748322839,6.1229488,3266.4,3265.4,0.98771875]
[1767748323021,6.90980679,3266.4,3265.4,0.98771875]
[1767748324031,0.94363109,3266.3,3265.4,0.98771875]
[1767748325512,6.12332374,3266.2,3265.4,0.98771875]
[1767748326340,6.12332374,3266.2,3265.0,0.802]
[1767748326635,7.03602375,3266.2,3265.1,0.91536465]
[1767748326836,0.91270001,3266.0,3264.9,3.0628376]
[1767748327743,0.91270001,3265.8,3264.9,3.0628376]
[1767748328539,0.91270001,3265.8,3264.9,3.97820225]
[1767748328734,3.0619431,3265.9,3265.0,0.91536465]
[1767748329744,0.91270001,3265.8,3264.9,3.0628376]
[1767748329915,0.91270001,3265.8,3265.0,0.69277682]
[1767748330734,0.91270001,3265.8,3265.4,0.001]
[1767748331243,3.06185553,3266.0,3265.4,0.001]
[1767748331614,3.97455554,3266.0,3265.4,0.001]
[1767748333843,3.06185553,3266.0,3265.4,0.001]
[1767748334340,3.06185553,3266.0,3265.4,0.91636465]
[1767748335544,3.74456876,3266.0,3265.4,0.91636465]
[1767748336755,1.59541324,3266.0,3265.4,0.001]
[1767748336918,0.91270001,3266.2,3265.4,0.001]
[1767748337659,3.97445562,3266.1,3265.4,0.001]
[1767748338848,0.91270001,3266.0,3265.4,0.001]
[1767748339346,3.06175561,3266.1,3265.4,0.001]
[1767748339549,3.3729619,3266.1,3265.4,0.91636465]
[1767748341541,0.91270001,3266.0,3265.4,0.001]
[1767748342844,3.3729619,3266.1,3265.4,0.91636465]
[1767748345043,0.91270001,3266.0,3265.4,0.001]
[1767748346152,3.3729619,3266.1,3265.4,0.91636465]
[1767748346658,0.31120629,3266.1,3265.4,0.91636465]
[1767748347049,0.91270001,3266.0,3265.4,0.001]
[1767748347245,3.97429226,3266.3,3265.4,0.91636465]
[1767748347454,0.91270001,3266.2,3265.4,0.001]
[1767748347930,6.1231845,3266.3,3265.4,0.001]
[1767748347931,6.1231845,3266.3,3265.4,0.91636465]
[1767748348452,3.06159225,3266.3,3265.4,0.91636465]
[1767748349159,6.1231845,3266.3,3265.4,0.91636465]
[1767748349730,3.06159225,3266.3,3265.5,0.91536465]
[1767748350756,3.06159225,3266.3,3265.4,0.001]
[1767748350757,0.91270001,3266.2,3265.4,0.001]
[1767748350956,3.06159225,3266.3,3265.5,0.91536465]
[1767748352775,3.06159225,3266.3,3265.6,0.9797305]
[1767748354027,3.9924073,3266.8,3265.8,0.9797305]
[1767748354028,3.06125763,3266.7,3265.8,0.9797305]
[1767748354257,3.54069836,3266.7,3265.8,0.9797305]
[1767748354964,0.93128627,3266.6,3265.7,0.803]
[1767748355265,3.99266695,3266.5,3265.7,3.86512886]
[1767748355638,3.99266695,3266.5,3265.7,4.84485936]
[1767748356362,3.99266695,3266.5,3265.7,1.7827305]
[1767748357046,0.93128627,3266.4,3265.7,0.803]
[1767748357358,0.93128627,3266.4,3265.7,3.86512547]
[1767748357931,0.93128627,3266.4,3265.7,0.803]
[1767748359361,0.93128627,3266.3,3265.7,0.803]
[1767748359733,0.93128627,3266.3,3265.7,3.86511835]
[1767748360068,0.93128627,3266.3,3265.7,0.69374255]
[1767748360270,0.93128627,3266.2,3265.7,0.001]
[1767748362480,3.06157537,3266.3,3265.7,0.001]
[1767748365953,0.93128627,3266.2,3265.7,0.001]
[1767748366473,0.93328627,3266.2,3265.7,0.001]
[1767748367160,7.05479749,3266.1,3265.7,0.001]
[1767748368359,7.05479749,3266.1,3265.4,0.001]
[1767748368360,3.06175561,3266.1,3265.4,0.9807305]
[1767748369373,0.002,3266.2,3265.4,0.9807305]
[1767748369565,0.61251363,3266.1,3265.4,0.9807305]
[1767748371076,0.61251363,3266.1,3265.4,0.97513726]
[1767748371373,3.06184935,3266.0,3265.4,0.97513726]
[1767748375281,3.67429995,3266.1,3265.4,0.97513726]
[1767748377069,0.93128627,3266.0,3265.2,3.06256474]
[1767748377369,0.93128627,3266.0,3265.3,0.48442952]
[1767748378946,3.06178632,3266.1,3265.4,0.91636132]
[1767748379484,0.002,3265.8,3265.4,0.91636132]
[1767748387190,0.93340145,3265.8,3265.1,3.86464521]
[1767748388171,0.93340145,3265.8,3265.1,0.802]
[1767748388372,0.93340145,3265.8,3265.1,4.3459731]
[1767748389373,0.002,3265.8,3265.2,0.94848914]
[1767748390977,0.93140145,3265.7,3264.7,0.94848914]
[1767748391165,0.93140145,3265.5,3264.7,0.94848914]
[1767748391366,1.63698453,3265.5,3264.7,0.94848914]
[1767748391567,1.63698453,3265.5,3264.6,0.002]
[1767748391568,0.93140145,3265.4,3264.6,0.002]
[1767748391874,0.93140145,3265.4,3264.4,0.94733098]
[1767748393360,0.93140145,3265.2,3264.4,0.94733098]
[1767748393664,0.93140145,3265.0,3264.3,0.002]
[1767748395393,0.93140145,3265.0,3264.3,3.0654422]
[1767748395582,0.93140145,3265.0,3264.3,0.002]
[1767748396393,3.99420803,3265.0,3264.3,0.95048914]
[1767748396594,1.40138638,3264.9,3264.3,0.002]
[1767748397195,0.93140145,3264.8,3264.0,3.06367211]
[1767748397392,0.93140145,3264.8,3263.9,3.06380826]
[1767748397393,0.93140145,3264.8,3264.1,3.06360853]
[1767748397574,0.93140145,3264.8,3264.0,3.06369806]
[1767748398402,0.93140145,3264.8,3264.1,0.94848914]
[1767748400893,0.93140145,3264.8,3264.1,4.01206028]
[1767748401784,0.93140145,3264.8,3264.1,0.94848914]
[1767748402112,0.93140145,3264.8,3264.0,3.0636788]
[1767748402526,0.93140145,3264.6,3263.7,3.06398842]
[1767748402817,0.93140145,3264.6,3263.6,3.06404933]
[1767748403488,0.93140145,3264.6,3263.7,0.94848914]
[1767748403990,3.99465769,3264.5,3263.7,0.94848914]
[1767748404190,0.93140145,3264.5,3263.7,0.94848914]
[1767748404403,0.93140145,3264.5,3264.0,0.002]
[1767748404711,1.71736929,3264.5,3264.0,0.002]
[1767748407299,0.93140145,3264.4,3264.0,0.002]
[1767748409004,0.78596784,3264.5,3264.0,0.002]
[1767748409209,3.99460647,3264.6,3264.0,0.002]
[1767748409623,3.99457476,3264.6,3264.0,0.002]
[1767748409986,3.06317331,3264.6,3264.0,0.95048914]
[1767748415196,0.93557673,3265.0,3264.1,1.00407813]
[1767748415515,0.802,3265.2,3264.2,0.97344182]
[1767748416135,0.802,3265.2,3264.4,0.97344182]
[1767748416310,0.001,3264.5,3264.4,0.97344182]
[1767748416497,3.06269333,3265.1,3264.5,0.97344182]
[1767748417007,7.06096339,3265.1,3264.3,0.97544182]
[1767748417197,1.72187307,3265.0,3264.3,0.97544182]
[1767748417398,0.93557673,3264.9,3264.3,0.002]
[1767748419031,3.0625122,3265.3,3264.3,5.47927273]
[1767748419201,0.93557673,3265.2,3264.4,0.97344182]
[1767748419523,0.93557673,3265.2,3264.4,0.85427982]
[1767748419726,0.93557673,3265.2,3264.3,0.002]
[1767748420509,0.93557673,3265.0,3264.3,0.002]
[1767748422119,0.93557673,3264.9,3264.3,0.002]
[1767748422628,3.86473254,3265.1,3264.3,0.97544182]
[1767748424733,3.86473254,3265.1,3264.3,4.06951061]
[1767748425032,3.86473254,3265.1,3264.4,0.97344182]
[1767748427338,4.3002602,3265.1,3264.4,0.97344182]
[1767748427625,4.3002602,3265.1,3264.3,0.97544182]
[1767748428036,4.3002602,3265.1,3264.4,0.97344182]
[1767748428607,0.001,3264.8,3264.4,0.97344182]
[1767748431310,0.93657673,3264.8,3264.3,0.002]
[1767748431510,0.93657673,3264.8,3264.0,0.002]
[1767748432212,0.93557673,3264.6,3264.0,0.002]
[1767748432411,0.93557673,3264.5,3264.0,0.002]
[1767748433740,0.70627139,3264.6,3264.0,0.002]
[1767748434132,1.64184812,3264.6,3264.0,0.002]
[1767748436438,3.06325624,3264.5,3264.0,0.002]
[1767748437640,0.93557673,3264.4,3264.0,0.002]
[1767748438744,0.93557673,3264.3,3264.0,0.002]
[1767748438929,3.06338622,3264.4,3264.0,0.002]
[1767748440952,3.84022991,3264.4,3264.0,0.002]
[1767748441149,3.84022991,3264.4,3263.7,0.97344182]
[1767748441354,6.90361613,3264.4,3263.7,0.97344182]
[1767748441654,7.84867775,3264.4,3263.7,0.97344182]
[1767748443648,4.78529153,3264.4,3263.7,0.97344182]
[1767748444844,3.84843047,3264.3,3263.7,0.97344182]
[1767748447537,0.94462542,3264.2,3263.4,0.002]
[1767748450759,0.94462542,3264.1,3263.4,0.002]
[1767748451656,0.94462542,3264.1,3263.4,0.90280534]
[1767748451857,3.84843116,3264.3,3263.4,0.90280534]
[1767748452658,3.84843116,3264.3,3263.7,0.002]
[1767748452859,0.7856412,3264.2,3263.7,0.002]
[1767748453456,0.001,3264.0,3263.7,0.002]
[1767748457161,0.001,3264.0,3263.7,0.90280534]
[1767748457658,0.94562542,3264.0,3263.7,0.002]
[1767748458266,3.06477056,3264.0,3263.7,0.002]
[1767748458472,1.55747392,3263.9,3263.3,0.90080534]
[1767748458969,1.55747392,3263.9,3263.1,0.90280534]
[1767748459170,1.55747392,3263.9,3263.1,3.96735952]
[1767748460250,4.6213595,3263.9,3263.1,0.90280534]
[1767748464338,4.6213595,3263.9,3263.1,3.96734788]
[1767748464752,4.6213595,3263.9,3263.1,0.90280534]
[1767748465966,4.6213595,3263.9,3263.4,0.002]
[1767748466163,0.76860925,3263.8,3263.4,0.002]
[1767748466364,0.001,3263.6,3263.4,0.002]
[1767748470054,0.001,3263.6,3263.2,0.89979061]
[1767748472086,0.001,3263.6,3263.1,0.98053734]
[1767748477661,0.97543818,3263.5,3263.1,0.002]
[1767748477866,0.97543818,3263.5,3263.1,0.30906478]
[1767748478165,0.97543818,3263.5,3263.4,0.002]
[1767748479077,0.9157567,3263.5,3263.4,0.002]
[1767748479275,0.001,3263.6,3263.4,0.002]
[1767748479477,3.06477498,3264.0,3263.4,0.98053734]
[1767748479666,3.06474891,3264.0,3263.4,0.98053734]
[1767748483595,7.103936,3264.0,3263.4,0.002]
[1767748483791,0.7905936,3263.9,3263.4,0.002]
[1767748484497,0.7905936,3263.9,3263.2,0.97264528]
[1767748484790,3.85441783,3263.9,3263.2,0.97264528]
[1767748485100,3.06382423,3263.9,3263.2,0.97264528]
[1767748487600,0.97543818,3263.8,3263.1,0.002]
[1767748489699,0.97543818,3263.7,3263.1,0.002]
[1767748490169,3.06384229,3263.9,3263.2,0.97853734]
[1767748490499,0.001,3263.5,3263.2,0.97853734]
[1767748490702,0.97543818,3263.8,3263.1,0.002]
[1767748490898,0.97543818,3263.8,3263.1,0.61555167]
[1767748492500,0.97543818,3263.7,3263.1,0.61555167]
[1767748493604,0.97543818,3263.7,3263.1,0.002]
[1767748493792,0.97543818,3263.7,3263.0,0.002]
[1767748494605,0.97543818,3263.5,3263.0,0.002]
[1767748495814,3.06410099,3263.6,3263.1,0.97853734]
[1767748496108,6.12820198,3263.6,3263.1,0.97853734]
[1767748496403,0.6128202,3263.5,3263.1,0.97853734]
[1767748496789,3.06428877,3263.4,3263.1,0.97853734]
[1767748497376,6.12857754,3263.4,3263.1,0.97853734]
[1767748497604,0.97543818,3263.3,3263.0,0.002]
[1767748498900,4.03989982,3263.3,3263.0,0.002]
[1767748499207,0.93998664,3263.1,3262.9,0.002]
[1767748499410,0.93998664,3263.1,3262.7,0.002]
[1767748499578,3.06446164,3263.3,3262.7,0.002]
[1767748500404,4.00444828,3263.3,3262.7,0.002]
[1767748501308,3.06446164,3263.3,3262.7,0.9503349]
[1767748501699,6.80308048,3263.3,3262.7,0.9503349]
[1767748502103,6.80308048,3263.3,3262.7,0.94832704]
[1767748502317,0.96937168,3263.2,3262.0,3.06759671]
[1767748502485,0.96937168,3263.0,3262.0,0.002]
[1767748502813,0.96937168,3263.0,3261.7,0.002]
[1767748503035,0.96937168,3262.6,3261.4,0.002]
[1767748503215,1.77237168,3262.5,3261.4,0.002]
[1767748503712,0.96937168,3262.4,3261.4,0.002]
[1767748505016,6.13064402,3262.3,3261.4,0.002]
[1767748505218,0.96937168,3262.2,3261.4,0.002]
[1767748505413,0.96937168,3262.0,3261.4,0.002]
[1767748505716,0.71000157,3262.1,3261.4,0.002]
[1767748505917,1.67937325,3262.1,3261.1,0.97223656]
[1767748506590,0.71000157,3262.1,3261.1,0.97223656]
[1767748507016,0.803,3262.0,3261.1,0.97223656]
[1767748507498,3.0656979,3261.9,3261.1,0.97223656]
[1767748507722,1.66280483,3261.8,3261.0,0.002]
[1767748507926,0.96937168,3261.7,3260.9,1e-08]
[1767748508126,0.96937168,3261.7,3259.9,3.22722298]
[1767748508324,4.63249704,3261.6,3260.0,0.97305125]
[1767748508526,0.803,3261.5,3260.0,0.97305125]
[1767748508829,0.96937168,3261.4,3259.8,0.97305125]
[1767748509034,0.96937168,3261.4,3259.9,0.97305125]
[1767748509211,0.17723717,3261.3,3260.0,0.97305125]
[1767748509731,6.13271188,3261.2,3260.0,0.97305125]
[1767748510227,3.06635594,3261.2,3260.1,0.97305125]
[1767748510432,0.26118803,3261.1,3260.1,0.97305125]
[1767748510632,0.803,3261.0,3260.1,0.97305125]
[1767748511431,1.43044186,3261.0,3260.1,0.97305125]
[1767748511727,3.06663804,3260.9,3259.9,4.04056947]
[1767748511930,3.06663804,3260.9,3259.9,0.97305125]
[1767748512799,0.96937168,3260.8,3259.6,0.97305125]
[1767748513001,0.96937168,3260.6,3259.6,0.97305125]
[1767748513202,0.803,3260.5,3259.6,0.97305125]
[1767748513434,0.803,3260.5,3258.4,0.15969655]
[1767748513435,0.96937168,3260.4,3258.4,0.15969655]
[1767748513644,6.1344048,3260.3,3258.9,0.97305125]
[1767748513937,6.1344048,3260.3,3259.0,0.97305125]
[1767748513938,0.71037765,3260.2,3259.0,0.97305125]
[1767748515236,1.67974933,3260.2,3259.0,0.97305125]
[1767748515423,0.96937168,3260.1,3259.0,0.97305125]
[1767748515629,3.06757876,3259.9,3259.0,0.97305125]
[1767748516929,0.96937168,3259.8,3258.7,0.00035112]
[1767748517133,0.96937168,3259.7,3258.7,0.00035112]
[1767748517810,0.96937168,3259.5,3258.7,0.00035112]
[1767748518009,0.96937168,3259.3,3258.7,0.00035112]
[1767748518232,0.96937168,3259.3,3257.7,0.0306965]
[1767748518443,1.14660885,3259.2,3257.7,1.00374775]
[1767748520040,6.13666348,3259.1,3257.8,0.82005125]
[1767748520215,6.13666348,3259.1,3257.7,3.10030986]
[1767748520216,0.96937168,3259.0,3257.7,0.0306965]
[1767748520411,0.96937168,3258.8,3257.7,3.10034325]
[1767748520613,0.803,3258.9,3257.8,0.97305125]
[1767748521554,1.94513096,3258.9,3257.8,1.68736351]
[1767748521915,1.94513096,3258.9,3258.0,0.97305125]
[1767748522119,0.803,3258.9,3258.0,0.97305125]
[1767748522526,3.87152649,3258.9,3258.0,0.97305125]
[1767748522833,0.803,3258.9,3258.0,0.97305125]
[1767748523244,3.87152919,3258.9,3258.0,0.97305125]
[1767748523549,0.803,3258.9,3258.0,0.97305125]
[1767748523750,3.87152016,3258.9,3258.0,0.97305125]
[1767748523951,3.87152016,3258.9,3258.0,4.04241795]
[1767748524271,0.803,3258.9,3258.2,0.97305125]
[1767748525241,3.87153436,3258.9,3258.2,0.97305125]
[1767748526339,0.803,3258.9,3258.2,0.97305125]
[1767748526759,0.001,3258.6,3258.2,0.97305125]
[1767748527838,0.97037168,3258.6,3258.0,3.06935968]
[1767748528039,0.97037168,3258.6,3258.1,0.30693597]
[1767748528417,0.97037168,3258.6,3256.9,4.48164615]
[1767748528618,0.97037168,3258.6,3256.7,1.13270413]
[1767748528619,0.96937168,3258.5,3257.0,0.97305125]
[1767748528819,0.96937168,3258.2,3256.6,0.97305125]
[1767748529015,0.96937168,3257.9,3256.6,0.97305125]
[1767748529214,1.77337168,3257.8,3256.6,4.04371496]
[1767748529444,2.39887346,3257.8,3256.7,0.71144555]
[1767748529657,0.96937168,3257.7,3256.6,0.97305125]
[1767748529820,4.48164615,3257.4,3255.7,0.15966744]
[1767748530148,6.14024314,3257.2,3256.1,0.97305125]
[1767748530337,4.48164615,3256.8,3255.6,0.0307163]
[1767748530524,0.804,3256.7,3255.4,0.97305125]
[1767748531046,0.96937168,3256.6,3255.2,0.97305125]
[1767748531220,4.65898332,3256.5,3255.2,1.51852099]
[1767748531415,4.65898332,3256.5,3254.7,4.48164615]
[1767748531416,4.48164615,3256.2,3254.8,3.07237449]
[1767748531625,0.804,3256.1,3254.9,3.07226879]
[1767748531844,0.804,3256.1,3254.8,0.9417169]
[1767748532056,0.804,3256.1,3255.2,3.07098912]
[1767748532219,0.804,3256.1,3255.1,0.9417169]
[1767748532414,0.69442431,3257.1,3255.8,0.9417169]
[1767748532619,0.804,3257.2,3256.0,0.9417169]
[1767748532857,0.804,3257.2,3255.2,0.72123537]
[1767748532858,0.93532066,3258.1,3256.1,0.97242848]
[1767748533090,0.93532066,3258.5,3256.2,0.98161868]
[1767748533354,0.0328037,3258.4,3256.4,0.98161868]
[1767748533567,0.804,3258.3,3256.6,0.98161868]
[1767748533716,0.0328037,3258.2,3256.8,0.9417169]
[1767748533922,0.0328037,3258.2,3256.7,0.03070592]
[1767748533923,0.0328037,3258.2,3257.0,0.9417169]
[1767748534121,0.0328037,3258.2,3256.9,6.14080874]
[1767748534122,0.0328037,3258.2,3257.1,1.64996946]
[1767748534824,0.0328037,3258.2,3257.2,0.9417169]
[1767748535022,1.15172908,3259.3,3257.2,1.3047104]
[1767748535232,1.15172908,3259.3,3257.3,0.9417169]
[1767748535434,0.804,3259.0,3257.5,0.9417169]
[1767748535657,0.804,3259.0,3257.7,0.9417169]
[1767748535949,0.804,3259.2,3257.7,0.9417169]
[1767748536148,0.804,3259.2,3257.9,0.9417169]
[1767748536721,0.21640842,3259.3,3257.9,0.9417169]
[1767748536931,1.02040842,3259.3,3257.9,0.9417169]
[1767748538142,1.02040842,3259.3,3258.1,0.9417169]
[1767748539063,0.001,3259.0,3258.1,0.9417169]
[1767748539249,0.001,3259.0,3258.2,0.70804523]
[1767748539970,0.001,3259.0,3258.2,0.70704425]
[1767748540170,0.93632066,3259.0,3257.3,0.9417169]
[1767748540467,0.93632066,3259.0,3257.7,6.13927276]
[1767748540766,0.805,3259.0,3257.8,0.9417169]
[1767748540950,0.805,3259.0,3257.8,0.97241246]
[1767748541150,0.805,3259.0,3258.0,0.9417169]
[1767748541557,0.805,3259.0,3257.9,1.01813356]
[1767748541756,0.805,3259.0,3257.4,3.06987955]
[1767748541757,0.93532066,3258.9,3257.4,3.06987955]
[1767748541970,0.93532066,3258.9,3257.5,3.06975676]
[1767748542266,0.93532066,3258.9,3257.4,0.9417169]
[1767748542471,0.17403207,3258.8,3257.5,1.64989405]
[1767748543060,0.22021301,3258.7,3257.5,1.64989405]
[1767748543246,0.804,3258.9,3257.6,0.97241434]
[1767748543447,0.804,3258.9,3257.6,0.9417169]
[1767748543660,0.804,3258.9,3257.7,1.10977614]
[1767748544183,3.87256516,3258.9,3257.7,1.10977614]
[1767748544358,0.93532066,3258.8,3257.3,4.01171982]
[1767748544782,0.93532066,3258.8,3257.3,0.9417169]
[1767748545350,0.93532066,3258.8,3256.9,3.07034327]
[1767748545573,0.93532066,3258.8,3257.0,3.07027958]
[1767748545763,0.93532066,3258.6,3257.2,3.07005055]
[1767748545989,0.93532066,3258.6,3257.2,4.01176745]
[1767748546146,0.93532066,3258.6,3257.3,0.9417169]
[1767748546352,3.06889673,3258.5,3257.3,0.9417169]
[1767748546548,0.805,3259.0,3257.4,0.97241623]
[1767748546769,0.805,3259.0,3257.3,6.17991962]
[1767748546770,4.2607748,3259.0,3257.6,0.9417169]
[1767748547453,1.19233999,3259.0,3257.6,0.9417169]
[1767748547659,0.805,3259.0,3257.6,0.9417169]
[1767748548349,0.001,3259.0,3257.8,0.9417169]
[1767748548672,0.804,3259.0,3258.1,0.9417169]
[1767748549482,0.804,3259.0,3257.7,6.13930072]
[1767748549483,0.804,3259.0,3257.7,4.01136726]
[1767748549776,0.804,3259.0,3257.7,0.9417169]
[1767748549981,0.804,3259.0,3257.9,0.9417169]
[1767748550176,3.87202408,3259.5,3257.9,0.97241151]
[1767748550378,3.87202408,3259.5,3258.1,0.9417169]
[1767748551380,0.804,3259.5,3258.1,0.9417169]
[1767748551683,0.001,3259.0,3258.1,0.9417169]
[1767748551895,0.001,3259.0,3258.3,0.9417169]
[1767748552179,3.87195943,3259.5,3258.3,0.9417169]
[1767748552376,0.804,3259.5,3258.3,0.9417169]
[1767748552552,3.8719645,3259.5,3258.3,0.9417169]
[1767748552954,6.939929,3259.5,3258.3,0.9417169]
[1767748553152,7.72745397,3259.5,3258.3,0.9417169]
[1767748553354,4.65948947,3259.5,3258.3,0.9417169]
[1767748553581,8.66277463,3259.5,3258.3,0.9417169]
[1767748554079,5.59481013,3259.5,3258.3,0.9417169]
[1767748554258,0.93532066,3259.4,3257.9,0.002]
[1767748554458,0.93532066,3259.3,3258.0,0.804]
[1767748554772,0.93532066,3259.3,3258.2,3.06915091]
[1767748554972,0.93532066,3259.3,3258.1,3.06923819]
[1767748556171,4.00346572,3259.3,3258.1,3.06923819]
[1767748556376,0.93532066,3259.3,3258.2,0.38732382]
[1767748556761,0.93532066,3259.2,3258.2,0.38732382]
[1767748557156,0.93532066,3259.2,3258.0,0.804]
[1767748557393,0.93532066,3259.2,3258.2,3.06914894]
[1767748557569,0.93532066,3259.2,3258.2,3.87314894]
[1767748557888,0.03126396,3538.0,3258.2,3.87314894]
[1767748557889,0.93532066,3259.6,3258.3,1.01230953]
[1767748558185,0.93532066,3260.3,3258.5,0.98161868]
[1767748558686,0.93532066,3260.3,3259.1,0.03990178]
[1767748558885,0.93532066,3260.3,3259.2,0.804]
[1767748560380,0.2129666,3260.5,3259.3,0.98710953]
[1767748560887,0.92902028,3260.4,3259.4,0.804]
[1767748561090,0.42090233,3260.3,3259.4,0.804]
[1767748561266,0.2129666,3260.5,3259.4,0.804]
[1767748561267,0.2129666,3260.5,3259.4,1.79110953]
[1767748561470,0.98185058,3260.4,3259.0,3.97549034]
[1767748561776,0.98185058,3260.4,3259.1,0.804]
[1767748561987,0.98185058,3260.4,3259.2,0.804]
[1767748562777,0.98185058,3260.2,3258.6,3.06874287]
[1767748562975,0.98185058,3260.0,3258.7,4.4864591]
[1767748564009,0.98185058,3260.0,3258.7,1.41776298]
[1767748564161,0.98185058,3260.0,3258.6,0.804]
[1767748564362,0.98185058,3260.0,3258.6,0.806]
[1767748564689,0.98285058,3259.7,3258.6,0.002]
[1767748564889,0.98185058,3259.5,3258.6,0.002]
[1767748565098,0.40497117,3259.4,3258.6,0.002]
[1767748565700,0.40497117,3259.4,3258.6,0.90910227]
[1767748566008,0.001,3259.7,3258.8,0.90710227]
[1767748567807,0.001,3259.7,3258.7,3.06863827]
[1767748568109,0.001,3259.7,3258.8,3.06860996]
[1767748568408,0.001,3259.7,3258.7,3.87266692]
[1767748568769,0.001,3259.7,3258.7,0.804]
[1767748569413,0.98285058,3259.7,3258.6,0.002]
[1767748569619,0.98285058,3259.7,3258.7,0.804]
[1767748571196,3.06786108,3259.6,3258.6,0.806]
[1767748571523,4.05068568,3259.7,3258.6,0.806]
[1767748571524,0.71185468,3259.5,3258.6,1e-08]
[1767748571724,0.98185058,3259.4,3258.6,1e-08]
[1767748573306,4.04992627,3259.4,3258.6,1e-08]
[1767748573507,0.98185058,3259.3,3258.6,1e-08]
[1767748575406,0.98185058,3259.1,3258.6,1e-08]
[1767748575592,0.98185058,3258.9,3257.5,0.002]
[1767748575801,0.98185058,3258.7,3257.0,0.90710227]
[1767748576619,0.98185058,3258.7,3256.9,0.002]
[1767748577418,0.98185058,3258.5,3256.9,0.002]
[1767748577715,0.98185058,3258.3,3256.9,0.002]
[1767748577904,0.98185058,3258.1,3256.9,0.002]
[1767748579692,0.98185058,3257.9,3256.9,0.002]
[1767748580289,0.98185058,3258.3,3256.9,0.90910227]
[1767748580496,0.98185058,3258.6,3256.9,0.90910227]
[1767748582312,3.06889673,3258.5,3257.1,0.90710227]
[1767748582719,4.05074731,3258.5,3257.1,0.90710227]
[1767748583017,0.98185058,3258.4,3257.1,0.90710227]
[1767748583218,0.40507473,3258.3,3257.1,0.90710227]
[1767748583595,1.38692531,3258.3,3257.1,0.90710227]
[1767748583818,1.38692531,3258.3,3257.1,1.71110227]
[1767748584396,7.12020918,3258.2,3257.1,0.90710227]
[1767748584587,0.98185058,3258.1,3256.9,0.002]
[1767748584788,6.1383586,3258.2,3256.9,0.002]
[1767748584789,1.6938715,3258.0,3256.9,0.002]
[1767748585127,0.98185058,3257.9,3256.9,0.002]
[1767748586397,0.98185058,3257.7,3256.9,0.002]
[1767748587240,0.98185058,3257.5,3255.7,0.8059451]
[1767748587543,0.98185058,3257.2,3255.7,0.8059451]
[1767748587699,0.98185058,3257.0,3255.7,0.8059451]
[1767748588302,0.98185058,3256.8,3255.7,0.8059451]
[1767748588507,0.98185058,3256.8,3255.3,0.90710227]
[1767748588703,0.98185058,3256.8,3254.5,3.07262044]
[1767748588704,0.98185058,3256.5,3253.4,0.90710227]
[1767748589031,0.98185058,3256.3,3254.6,0.94700405]
[1767748589196,0.92112131,3256.8,3254.6,0.94700405]
[1767748589197,0.804,3256.2,3254.8,0.94089695]
[1767748589527,0.804,3256.2,3255.0,0.94089695]
[1767748590137,0.804,3256.2,3255.0,0.90710227]
[1767748590433,3.07115874,3256.1,3255.0,0.90609932]
[1767748590618,0.6946313,3256.0,3255.0,0.90609932]
[1767748590805,0.804,3256.2,3255.1,0.94089695]
[1767748591540,0.98185058,3256.1,3254.6,0.90710227]
[1767748591741,0.98185058,3256.1,3254.6,3.97966884]
[1767748591938,0.99495236,3255.9,3253.6,0.93814749]
[1767748592242,0.99495236,3255.9,3253.9,0.93814749]
[1767748592401,7.1382132,3255.6,3254.0,1.33929207]
[1767748592935,0.99495236,3255.5,3254.0,1.33929207]
[1767748593173,0.99495236,3255.5,3253.6,0.93814749]
[1767748593429,0.99495236,3255.3,3253.6,0.93814749]
[1767748594416,0.99495236,3255.1,3253.7,3.073418]
[1767748594821,3.07193034,3255.3,3253.8,0.96888078]
[1767748595008,3.07193034,3255.3,3253.7,3.073418]
[1767748595009,0.99495236,3256.1,3254.0,0.93814749]
[1767748595211,0.40660168,3256.0,3254.4,0.93814749]
[1767748595514,0.40660168,3256.0,3254.6,0.93814749]
[1767748595922,0.804,3256.2,3254.6,0.93814749]
[1767748596459,0.99495236,3255.8,3254.2,0.93814749]
[1767748596753,0.99495236,3255.8,3253.8,1.74214749]
[1767748596923,0.99495236,3255.8,3254.2,3.07286086]
[1767748597122,1.79895236,3255.7,3254.2,3.07286086]